bitfinex/quotes_SOLUSD_20250506
["timestamp","ask_amount","ask_price","bid_price","bid_amount"]
[1746555648193,20.12597378,144.58,144.54,20.12597378]
[1746555649278,20.12597378,144.58,144.55,6.91802144]
[1746555651702,20.12597378,144.59,144.55,27.04399522]
[1746555652484,20.12597378,144.58,144.55,6.91802144]
[1746555655101,20.12597378,144.57,144.53,6.91897875]
[1746555655289,20.12597378,144.56,144.53,6.91897875]
[1746555655490,20.12597378,144.55,144.53,6.91897875]
[1746555656399,20.12597378,144.55,144.52,34.09926612]
[1746555656803,20.12597378,144.55,144.52,20.51926612]
[1746555657209,20.12597378,144.55,144.52,6.91926612]
[1746555658495,1.6416,144.57,144.52,27.0452399]
[1746555658697,20.12597378,144.55,144.52,27.0452399]
[1746555660992,20.12597378,144.56,144.52,27.0452399]
[1746555661303,20.12597378,144.57,144.54,20.12597378]
[1746555661503,20.12597378,144.57,144.53,20.12597378]
[1746555661707,89.71572669,144.6,144.53,20.12597378]
[1746555661890,20.12597378,144.57,144.54,20.12597378]
[1746555662293,20.12597378,144.57,144.53,20.12597378]
[1746555662511,20.12597378,144.57,144.53,27.04495253]
[1746555664995,20.12597378,144.57,144.53,6.91897875]
[1746555665715,20.12597378,144.56,144.53,6.91897875]
[1746555666921,20.12597378,144.56,144.52,24.21810129]
[1746555668531,82.8,144.6,144.54,20.12597378]
[1746555668828,26.97567425,144.63,144.57,20.12597378]
[1746555669001,26.97567425,144.63,144.57,33.72597378]
[1746555669002,20.12597378,144.61,144.57,33.72597378]
[1746555669415,20.12597378,144.61,144.57,13.6]
[1746555669633,20.12597378,144.61,144.57,33.72597378]
[1746555670331,20.12597378,144.62,144.58,20.12597378]
[1746555670548,20.12597378,144.62,144.59,6.91610761]
[1746555672152,20.12597378,144.62,144.58,6.91658597]
[1746555672664,20.12597378,144.61,144.58,6.91658597]
[1746555674135,20.12597378,144.6,144.58,6.91658597]
[1746555674539,20.12597378,144.59,144.57,20.51696108]
[1746555674746,20.12597378,144.58,144.57,20.51696108]
[1746555676051,20.12597378,144.58,144.57,13.6]
[1746555677154,20.12597378,144.58,144.56,6.9170916]
[1746555677344,20.12597378,144.59,144.56,6.9170916]
[1746555677544,20.12597378,144.6,144.56,27.04306538]
[1746555678052,20.12597378,144.61,144.57,20.12597378]
[1746555678249,13.58,144.62,144.58,20.12597378]
[1746555678451,20.12597378,144.62,144.58,33.72597378]
[1746555679555,20.12597378,144.62,144.59,6.91610761]
[1746555679850,20.12597378,144.61,144.58,20.51635589]
[1746555680027,20.12597378,144.6,144.58,13.6]
[1746555680438,20.12597378,144.59,144.57,6.9168108]
[1746555680750,20.12597378,144.62,144.55,6.91778769]
[1746555680751,20.12597378,144.58,144.55,6.91778769]
[1746555680950,20.12597378,144.57,144.55,6.91778769]
[1746555681158,20.12597378,144.58,144.55,6.91778769]
[1746555681342,20.12597378,144.59,144.55,44.33881508]
[1746555681938,20.12597378,144.59,144.55,24.2128413]
[1746555682257,20.12597378,144.58,144.55,6.91778769]
[1746555687252,20.12597378,144.57,144.55,6.91778769]
[1746555687646,20.12597378,144.57,144.51,30.87864719]
[1746555687647,20.12597378,144.56,144.51,30.87864719]
[1746555687867,20.12597378,144.54,144.51,17.29864719]
[1746555688658,20.12597378,144.56,144.52,20.12597378]
[1746555688980,21.77167378,144.57,144.53,20.12597378]
[1746555689882,20.12597378,144.56,144.51,24.21858352]
[1746555690255,20.12597378,144.56,144.52,20.12597378]
[1746555690879,20.12597378,144.56,144.53,6.91897875]
[1746555691077,21.77167378,144.57,144.53,27.04495253]
[1746555691287,39.58,144.6,144.54,20.12597378]
[1746555691288,13.58,144.6,144.54,20.12597378]
[1746555691578,20.12597378,144.59,144.55,33.72597378]
[1746555691778,20.12597378,144.58,144.55,13.6]
[1746555692153,20.12597378,144.57,144.55,13.6]
[1746555692478,20.49565996,144.6,144.55,13.6]
[1746555692479,20.12597378,144.58,144.55,13.6]
[1746555692958,20.12597378,144.57,144.55,20.51774727]
[1746555696178,20.12597378,144.58,144.55,20.51774727]
[1746555697082,20.12597378,144.59,144.55,40.64372105]
[1746555697877,20.12597378,144.58,144.55,20.51774727]
[1746555702471,20.12597378,144.59,144.55,40.64372105]
[1746555703993,82.8,144.61,144.56,20.12597378]
[1746555704288,20.12597378,144.62,144.58,20.12597378]
[1746555705888,20.12597378,144.62,144.59,6.91610761]
[1746555706484,20.12597378,144.61,144.59,6.91610761]
[1746555707387,20.12597378,144.6,144.56,6.91754288]
[1746555707694,20.12597378,144.6,144.56,27.04351666]
[1746555709369,20.49429897,144.63,144.56,27.04351666]
[1746555709568,20.12597378,144.6,144.56,27.04351666]
[1746555711795,20.12597378,144.6,144.56,44.33737388]
[1746555712096,20.12597378,144.61,144.56,44.33737388]
[1746555712394,20.12597378,144.61,144.57,20.12597378]
[1746555712577,20.12597378,144.62,144.57,20.12597378]
[1746555713095,20.12597378,144.6,144.56,24.2114001]
[1746555713273,13.58,144.63,144.56,24.2114001]
[1746555713274,20.12597378,144.59,144.56,6.91754288]
[1746555713598,20.12597378,144.58,144.56,6.91754288]
[1746555713892,20.12597378,144.59,144.56,6.91754288]
[1746555714591,20.12597378,144.59,144.55,6.91802144]
[1746555715491,20.12597378,144.58,144.55,6.91802144]
[1746555715693,20.12597378,144.57,144.54,6.91828442]
[1746555716192,1.5569,144.6,144.52,13.6]
[1746555716193,20.12597378,144.55,144.52,13.6]
[1746555716590,20.12597378,144.56,144.52,33.72597378]
[1746555716787,20.12597378,144.56,144.53,6.91897875]
[1746555717193,84.3569,144.6,144.53,6.91897875]
[1746555717194,20.12597378,144.55,144.53,6.91897875]
[1746555717393,20.12597378,144.54,144.51,13.6]
[1746555717590,20.12597378,144.53,144.51,6.91969841]
[1746555718675,20.12597378,144.53,144.5,6.92041522]
[1746555719206,20.12597378,144.52,144.5,6.92041522]
[1746555719493,109.84433647,144.55,144.47,13.6]
[1746555719494,20.12597378,144.51,144.47,13.6]
[1746555719695,20.12597378,144.5,144.47,13.6]
[1746555720090,20.12597378,144.51,144.47,33.72597378]
[1746555720387,20.12597378,144.51,144.47,40.64782606]
[1746555720591,20.12597378,144.52,144.48,20.12597378]
[1746555720898,102.92597378,144.54,144.5,20.12597378]
[1746555721104,26.0,144.56,144.51,20.12597378]
[1746555721300,84.4602,144.57,144.52,33.72597378]
[1746555721490,20.12597378,144.56,144.52,33.72597378]
[1746555722474,20.12597378,144.56,144.53,6.91897875]
[1746555722682,20.12597378,144.55,144.53,6.91897875]
[1746555724702,20.12597378,144.56,144.53,6.91897875]
[1746555724909,1.6602,144.57,144.53,6.91897875]
[1746555725204,20.12597378,144.56,144.53,6.91897875]
[1746555725397,13.58,144.58,144.53,6.91897875]
[1746555725607,20.12597378,144.56,144.53,24.21642564]
[1746555725805,13.58,144.58,144.53,24.21642564]
[1746555725806,13.58,144.58,144.53,44.34239942]
[1746555726018,20.12597378,144.57,144.53,44.34239942]
[1746555726313,20.12597378,144.56,144.53,24.21642564]
[1746555726702,20.12597378,144.57,144.53,44.34239942]
[1746555728219,20.12597378,144.56,144.53,24.21642564]
[1746555731216,20.12597378,144.57,144.53,44.34239942]
[1746555733003,82.8,144.59,144.53,44.34239942]
[1746555733004,82.8,144.59,144.55,20.12597378]
[1746555733197,20.12597378,144.59,144.56,6.91754288]
[1746555733800,20.12597378,144.6,144.56,6.91754288]
[1746555735902,20.12597378,144.59,144.56,6.91754288]
[1746555736325,117.34455411,144.61,144.55,13.62]
[1746555736326,20.12597378,144.57,144.55,13.62]
[1746555737224,20.12597378,144.57,144.55,20.5378712]
[1746555738712,20.12597378,144.56,144.55,13.62]
[1746555739517,20.12597378,144.56,144.55,20.53802144]
[1746555740424,20.12597378,144.56,144.55,6.91802144]
[1746555740927,20.12597378,144.57,144.54,6.91850006]
[1746555741214,20.12597378,144.58,144.54,27.04447384]
[1746555741417,102.92597378,144.59,144.55,20.12597378]
[1746555741628,20.12597378,144.6,144.56,20.12597378]
[1746555743124,20.12597378,144.6,144.57,6.91706439]
[1746555743920,108.8,144.61,144.57,6.91706439]
[1746555744126,20.12597378,144.6,144.57,6.91706439]
[1746555744328,20.12597378,144.59,144.57,6.91706439]
[1746555744804,20.12597378,144.58,144.57,6.91706439]
[1746555745317,20.12597378,144.58,144.55,6.91802144]
[1746555746822,108.8,144.61,144.55,20.12597378]
[1746555747126,20.12597378,144.59,144.55,20.12597378]
[1746555748822,20.12597378,144.59,144.54,24.21475023]
[1746555748823,20.12597378,144.58,144.54,27.04447384]
[1746555750037,20.12597378,144.55,144.53,6.91881371]
[1746555751029,20.12597378,144.56,144.53,6.91881371]
[1746555753530,20.12597378,144.57,144.53,6.91881371]
[1746555754537,20.12597378,144.57,144.53,27.04478749]
[1746555757241,82.8,144.6,144.56,20.12597378]
[1746555757436,26.0,144.61,144.56,20.12597378]
[1746555757742,26.0,144.61,144.57,13.6]
[1746555758041,20.12597378,144.6,144.57,13.6]
[1746555758337,20.12597378,144.6,144.58,6.91658597]
[1746555759048,96.4,144.62,144.58,6.91658597]
[1746555759226,116.52597378,144.62,144.58,6.91658597]
[1746555759426,20.12597378,144.61,144.58,6.91658597]
[1746555767146,20.12597378,144.62,144.58,27.04255975]
[1746555771049,20.12597378,144.62,144.59,20.12597378]
[1746555771842,20.12597378,144.62,144.58,27.04255975]
[1746555774752,20.12597378,144.61,144.58,27.04255975]
[1746555775956,20.12597378,144.61,144.58,6.91658597]
[1746555776164,108.8,144.65,144.56,6.91754288]
[1746555776165,20.12597378,144.59,144.56,6.91754288]
[1746555776457,20.12597378,144.58,144.56,6.91754288]
[1746555776657,20.12597378,144.59,144.56,6.91754288]
[1746555777852,20.12597378,144.59,144.56,27.04351666]
[1746555778155,20.12597378,144.6,144.56,27.04351666]
[1746555778455,82.8,144.64,144.58,20.12597378]
[1746555778636,20.12597378,144.62,144.58,20.12597378]
[1746555779037,20.12597378,144.63,144.59,20.12597378]
[1746555779257,20.12597378,144.63,144.6,13.58]
[1746555780155,20.12597378,144.63,144.6,20.49517582]
[1746555780461,20.12597378,144.62,144.6,20.49517582]
[1746555781548,20.12597378,144.63,144.6,20.49517582]
[1746555783164,20.12597378,144.62,144.6,20.49517582]
[1746555788175,82.8,144.64,144.6,37.78424912]
[1746555788461,102.92597378,144.64,144.6,57.9102229]
[1746555788765,20.12597378,144.63,144.6,37.78424912]
[1746555789950,20.12597378,144.63,144.6,20.49517582]
[1746555790451,20.12597378,144.62,144.57,6.91706439]
[1746555790656,20.12597378,144.61,144.57,27.04303817]
[1746555790865,20.12597378,144.6,144.57,6.91706439]
[1746555791448,20.12597378,144.61,144.57,27.04303817]
[1746555791659,20.12597378,144.6,144.57,6.91706439]
[1746555794376,1.528,144.63,144.57,27.04303817]
[1746555794553,82.8,144.64,144.59,20.12597378]
[1746555794754,20.12597378,144.63,144.59,20.12597378]
[1746555795067,20.12597378,144.63,144.6,6.91562932]
[1746555796270,102.92597378,144.64,144.6,27.0416031]
[1746555796781,102.92597378,144.64,144.6,44.3306764]
[1746555797581,82.8,144.66,144.6,44.3306764]
[1746555797778,20.12597378,144.65,144.6,44.3306764]
[1746555798071,20.12597378,144.65,144.61,13.58]
[1746555798269,20.12597378,144.65,144.62,6.91467293]
[1746555799274,82.8,144.66,144.62,6.91467293]
[1746555799582,20.12597378,144.65,144.62,6.91467293]
[1746555800786,20.12597378,144.64,144.62,6.91467293]
[1746555802181,20.12597378,144.65,144.62,6.91467293]
[1746555803181,20.12597378,144.64,144.62,6.91467293]
[1746555805291,82.8,144.66,144.62,6.91467293]
[1746555805487,20.12597378,144.65,144.62,6.91467293]
[1746555809204,20.12597378,144.64,144.62,6.91467293]
[1746555813690,20.12597378,144.65,144.62,6.91467293]
[1746555814295,20.12597378,144.65,144.62,27.04064671]
[1746555815397,14.97274611,144.68,144.62,44.32732904]
[1746555815707,20.12597378,144.67,144.63,20.12597378]
[1746555817094,14.97274611,144.68,144.64,20.12597378]
[1746555817302,20.12597378,144.67,144.65,6.91323885]
[1746555817499,14.97274611,144.68,144.65,6.91323885]
[1746555817683,35.09871989,144.68,144.65,6.91323885]
[1746555817997,20.12597378,144.67,144.65,6.91323885]
[1746555818388,1.39274611,144.68,144.66,33.70597378]
[1746555818577,1.39274611,144.68,144.67,20.12597378]
[1746555819600,1.39274611,144.68,144.67,27.0382569]
[1746555820203,1.39274611,144.68,144.67,6.91228312]
[1746555820588,1.39274611,144.68,144.67,27.0382569]
[1746555821498,1.39274611,144.68,144.67,6.91228312]
[1746555824707,1.39274611,144.68,144.67,27.0382569]
[1746555825202,1.39274611,144.68,144.66,13.58]
[1746555825508,21.51871989,144.68,144.66,13.58]
[1746555825709,20.12597378,144.67,144.66,13.58]
[1746555828110,21.51871989,144.68,144.66,13.58]
[1746555828403,1.39274611,144.68,144.66,13.58]
[1746555828609,21.51871989,144.68,144.66,20.49271102]
[1746555830208,21.51871989,144.68,144.64,6.91371681]
[1746555830514,21.51871989,144.68,144.64,20.49371681]
[1746555831801,21.51871989,144.68,144.64,40.61969059]
[1746555832112,1.39274611,144.68,144.65,20.12597378]
[1746555833217,1.39274611,144.68,144.66,20.12597378]
[1746555833718,1.39274611,144.68,144.67,27.0382569]
[1746555835212,1.39274611,144.68,144.67,6.91228312]
[1746555837421,1.39274611,144.68,144.67,27.0382569]
[1746555838909,1.39274611,144.68,144.67,6.91228312]
[1746555839722,1.39274611,144.68,144.67,20.49228312]
[1746555842022,1.39274611,144.68,144.67,40.6182569]
[1746555842608,1.39274611,144.68,144.67,59.26790576]
[1746555843401,1.39274611,144.68,144.67,79.30756733]
[1746555843705,1.39274611,144.68,144.67,105.30756733]
[1746555845331,1.39274611,144.68,144.67,105.16540576]
[1746555846821,1.39274611,144.68,144.67,105.30756733]
[1746555849524,1.39274611,144.68,144.67,79.30756733]
[1746555850730,1.39274611,144.68,144.67,20.47228312]
[1746555850912,21.51871989,144.68,144.67,6.91228312]
[1746555851426,21.51871989,144.68,144.63,20.49419484]
[1746555851623,20.12597378,144.66,144.63,20.49419484]
[1746555853830,20.12597378,144.65,144.63,20.49419484]
[1746555857124,1.39274611,144.68,144.6,6.91562932]
[1746555857125,20.12597378,144.64,144.6,6.91562932]
[1746555857438,20.12597378,144.64,144.6,20.49562932]
[1746555857628,20.12597378,144.64,144.6,57.9106764]
[1746555858041,20.12597378,144.65,144.61,20.12597378]
[1746555858223,82.8,144.67,144.62,20.12597378]
[1746555858419,1.39274611,144.68,144.62,20.12597378]
[1746555858626,20.12597378,144.67,144.63,20.12597378]
[1746555858828,20.12597378,144.67,144.64,6.91371681]
[1746555859629,21.51871989,144.68,144.64,27.03969059]
[1746555859833,21.51871989,144.68,144.64,44.32398262]
[1746555860038,21.51871989,144.68,144.65,13.62]
[1746555860336,1.39274611,144.68,144.65,33.74597378]
[1746555860644,1.39274611,144.68,144.66,20.12597378]
[1746555860842,1.39274611,144.68,144.67,6.91228312]
[1746555861026,1.39274611,144.68,144.67,27.0382569]
[1746555862154,1.39274611,144.68,144.67,45.68790576]
[1746555864632,1.39274611,144.68,144.67,6.91228312]
[1746555865029,1.39274611,144.68,144.67,20.53228312]
[1746555865723,21.51871989,144.68,144.67,6.91228312]
[1746555866647,1.39274611,144.68,144.67,6.91228312]
[1746555868051,1.39274611,144.68,144.67,27.0382569]
[1746555869059,1.39274611,144.68,144.67,6.91228312]
[1746555871870,1.39274611,144.68,144.67,27.0382569]
[1746555872834,1.39274611,144.68,144.67,6.91228312]
[1746555875875,1.39274611,144.68,144.67,27.0382569]
[1746555878474,1.39274611,144.68,144.67,45.83006733]
[1746555880556,1.39274611,144.68,144.67,59.43006733]
[1746555881771,1.39274611,144.68,144.67,39.30409355]
[1746555881978,1.39274611,144.68,144.67,59.43006733]
[1746555882382,1.39274611,144.68,144.67,39.30409355]
[1746555882553,1.39274611,144.68,144.67,59.43006733]
[1746555883765,1.39274611,144.68,144.67,54.2582569]
[1746555884076,1.39274611,144.68,144.67,20.51228312]
[1746555884253,1.39274611,144.68,144.67,34.13228312]
[1746555884575,1.39274611,144.68,144.67,40.6382569]
[1746555884763,1.39274611,144.68,144.67,54.2582569]
[1746555885369,1.39274611,144.68,144.67,40.6582569]
[1746555886678,1.39274611,144.68,144.67,20.53228312]
[1746555887692,1.39274611,144.68,144.67,6.91228312]
[1746555890080,21.51871989,144.68,144.67,6.91228312]
[1746555890457,21.51871989,144.68,144.66,20.53253334]
[1746555890765,21.51871989,144.68,144.66,6.91253334]
[1746555892259,1.39274611,144.68,144.66,6.91253334]
[1746555895484,21.51871989,144.68,144.66,6.91253334]
[1746555895659,20.12597378,144.67,144.66,6.91253334]
[1746555896179,21.51871989,144.68,144.66,6.91253334]
[1746555897174,1.39274611,144.68,144.66,6.91253334]
[1746555898880,1.39274611,144.68,144.66,20.51253334]
[1746555901364,1.39274611,144.68,144.66,40.63850712]
[1746555901684,1.39274611,144.68,144.67,20.12597378]
[1746555902787,1.39274611,144.68,144.67,6.91228312]
[1746555907493,1.39274611,144.68,144.67,27.0382569]
[1746555907876,1.39274611,144.68,144.67,6.91228312]
[1746555908070,1.39274611,144.68,144.67,27.0382569]
[1746555911375,20.12597378,144.76,144.67,27.0382569]
[1746555911376,1.5728,144.81,144.72,0.14216157]
[1746555911604,1.5728,144.81,144.78,20.12597378]
[1746555911780,1.5728,144.84,144.8,20.12597378]
[1746555912109,20.12597378,144.84,144.8,20.12597378]
[1746555912396,20.12597378,144.84,144.81,6.90560044]
[1746555912979,1.5728,144.88,144.81,24.16960154]
[1746555913185,10.87096834,144.9,144.85,20.12597378]
[1746555913386,10.87096834,144.9,144.88,20.12597378]
[1746555913586,10.87096834,144.9,144.86,13.64]
[1746555913786,20.12597378,144.91,144.87,20.12597378]
[1746555913990,20.12597378,144.92,144.88,20.12597378]
[1746555914191,15.968,144.94,144.89,32.06457615]
[1746555914392,15.968,144.94,144.9,6.90131124]
[1746555914595,15.968,144.94,144.9,13.64]
[1746555914902,32.06457615,144.93,144.9,13.64]
[1746555915203,15.968,144.94,144.9,13.64]
[1746555915386,32.06457615,144.93,144.9,13.64]
[1746555915586,32.06457615,144.92,144.9,13.64]
[1746555916696,15.968,144.94,144.9,13.64]
[1746555916994,32.06457615,144.93,144.9,13.64]
[1746555917196,32.06457615,144.92,144.9,13.64]
[1746555917401,32.06457615,144.91,144.9,13.64]
[1746555917606,32.06457615,144.91,144.87,45.64457615]
[1746555917794,32.06457615,144.91,144.87,66.1672242]
[1746555917986,32.06457615,144.91,144.87,59.26457615]
[1746555918303,32.06457615,144.91,144.87,66.16722922]
[1746555918603,32.06457615,144.91,144.87,59.26457615]
[1746555918798,32.06457615,144.9,144.87,27.2]
[1746555918999,32.06457615,144.88,144.87,13.62]
[1746555919187,32.06457615,144.89,144.87,13.62]
[1746555919595,6.8998827,144.93,144.87,13.62]
[1746555919794,32.06457615,144.89,144.87,13.62]
[1746555919999,32.06457615,144.88,144.87,13.62]
[1746555920186,32.06457615,144.89,144.87,13.62]
[1746555921104,60.61764886,144.94,144.83,13.7]
[1746555921105,32.06457615,144.88,144.83,13.7]
[1746555921307,32.06457615,144.85,144.82,34.18495925]
[1746555921508,32.06457615,144.84,144.82,13.7]
[1746555921706,32.06457615,144.85,144.82,20.6050552]
[1746555923108,32.06457615,144.87,144.83,38.96906806]
[1746555923399,32.06457615,144.86,144.83,6.90449191]
[1746555923806,32.06457615,144.87,144.83,38.96906806]
[1746555924002,32.06457615,144.87,144.83,6.90449191]
[1746555924309,32.06457615,144.87,144.83,38.96906806]
[1746555924906,32.06457615,144.89,144.85,6.90369347]
[1746555925598,32.06457615,144.88,144.85,6.90369347]
[1746555925812,32.06457615,144.87,144.83,32.06457615]
[1746555926311,32.06457615,144.86,144.83,6.90464682]
[1746555926486,32.06457615,144.87,144.83,38.96922297]
[1746555930189,32.06457615,144.87,144.83,6.90464682]
[1746555931200,32.06457615,144.86,144.82,6.90501751]
[1746555931398,32.06457615,144.85,144.82,20.60501751]
[1746555931989,32.06457615,144.84,144.81,6.9054135]
[1746555932412,32.06457615,144.84,144.81,20.6054135]
[1746555932801,32.06457615,144.84,144.81,6.9054135]
[1746555932991,32.06457615,144.83,144.8,20.6059606]
[1746555933609,32.06457615,144.84,144.8,52.67053675]
[1746555935215,82.8,144.86,144.81,32.06457615]
[1746555935402,114.86457615,144.86,144.82,32.06457615]
[1746555936622,114.86457615,144.86,144.83,6.90464682]
[1746555939030,114.86457615,144.86,144.81,38.97017659]
[1746555939513,32.06457615,144.85,144.81,38.97017659]
[1746555939717,20.06135994,144.84,144.8,40.66736203]
[1746555940019,20.06135994,144.83,144.8,20.60600209]
[1746555940314,20.06135994,144.84,144.8,20.60600209]
[1746555940517,20.06135994,144.84,144.8,40.66736203]
[1746555940812,82.8,144.85,144.78,13.68]
[1746555941117,20.06135994,144.82,144.79,6.90655432]
[1746555941431,20.06135994,144.81,144.79,6.90655432]
[1746555941924,32.11132731,144.82,144.79,6.90655432]
[1746555944716,32.11132731,144.82,144.79,20.60655432]
[1746555952029,89.70471429,144.83,144.76,6.90798563]
[1746555952230,32.11132731,144.81,144.78,6.90703135]
[1746555952843,114.91132731,144.82,144.78,6.90703135]
[1746555956130,32.11132731,144.8,144.78,6.90703135]
[1746555957224,32.11132731,144.79,144.78,6.90703135]
[1746555958537,32.11132731,144.8,144.78,6.90703135]
[1746555958716,32.11132731,144.8,144.77,6.90750846]
[1746555958910,32.11132731,144.79,144.77,6.90750846]
[1746555959619,114.91132731,144.78,144.73,30.93348721]
[1746555959906,32.11132731,144.77,144.73,63.04481452]
[1746555960611,82.8,144.78,144.75,32.11132731]
[1746555960816,82.8,144.78,144.76,6.90798563]
[1746555961111,82.8,144.82,144.76,56.28927701]
[1746555961305,114.91132731,144.82,144.77,32.11132731]
[1746555961509,114.91132731,144.82,144.78,13.66]
[1746555961738,15.1795,144.84,144.78,45.77132731]
[1746555961935,32.11132731,144.82,144.78,45.77132731]
[1746555962645,32.11132731,144.81,144.78,13.66]
[1746555963122,32.11132731,144.81,144.79,6.90655432]
[1746555963320,32.11132731,144.82,144.79,6.90655432]
[1746555963937,20.06923392,144.82,144.79,6.90655432]
[1746555964131,84.3195,144.84,144.79,6.90655432]
[1746555964325,20.06923392,144.82,144.79,6.90655432]
[1746555968030,84.3195,144.84,144.79,6.90655432]
[1746555968232,20.06923392,144.82,144.79,6.90655432]
[1746555970738,20.06923392,144.81,144.79,6.90655432]
[1746555972631,20.06923392,144.82,144.79,6.90655432]
[1746555973242,102.86923392,144.83,144.79,6.90655432]
[1746555973825,20.06923392,144.82,144.79,6.90655432]
[1746555974332,20.06923392,144.8,144.76,6.90798563]
[1746555974547,20.06923392,144.77,144.75,34.22828695]
[1746555974846,82.8,144.81,144.75,20.56828695]
[1746555974847,20.06923392,144.76,144.75,20.56828695]
[1746555975054,20.06923392,144.77,144.75,20.56828695]
[1746555975633,20.06923392,144.78,144.75,20.56828695]
[1746555975942,102.86923392,144.8,144.76,20.06923392]
[1746555976251,20.06923392,144.8,144.76,20.06923392]
[1746555977141,102.86923392,144.82,144.78,20.06923392]
[1746555977745,20.06923392,144.81,144.78,6.90703135]
[1746555979551,20.06923392,144.8,144.78,6.90703135]
[1746555980150,20.06923392,144.82,144.78,20.06923392]
[1746555980954,20.06923392,144.83,144.79,20.06923392]
[1746555981160,20.06923392,144.83,144.8,13.68]
[1746555981756,102.86923392,144.84,144.8,33.74923392]
[1746555982155,102.86923392,144.84,144.81,6.90560044]
[1746555982744,27.6213,144.87,144.81,6.90560044]
[1746555983051,20.06923392,144.85,144.81,26.97483436]
[1746555984254,20.06923392,144.84,144.81,6.90560044]
[1746555985754,20.06923392,144.83,144.81,6.90560044]
[1746555987158,20.06923392,144.83,144.8,20.58588062]
[1746555987451,6.90343566,144.86,144.8,20.58588062]
[1746555987653,20.06923392,144.84,144.8,40.65511454]
[1746555990368,102.86923392,144.86,144.81,20.06923392]
[1746555990543,102.86923392,144.86,144.82,20.06923392]
[1746555991255,102.86923392,144.86,144.83,6.90464682]
[1746555992077,20.06923392,144.85,144.83,6.90464682]
[1746555993663,20.06923392,144.85,144.82,6.9051236]
[1746555995650,20.06923392,144.86,144.82,6.9051236]
[1746555998049,20.06923392,144.85,144.82,6.9051236]
[1746555998748,20.06923392,144.83,144.78,24.17460974]
[1746555998966,20.06923392,144.82,144.78,24.17460974]
[1746555999167,20.06923392,144.82,144.79,13.62]
[1746555999372,89.70323549,144.86,144.79,13.62]
[1746555999373,20.06923392,144.83,144.79,33.68923392]
[1746555999778,20.06923392,144.83,144.8,6.90607734]
[1746556000182,89.70323549,144.86,144.8,6.90607734]
[1746556000485,20.06923392,144.84,144.8,26.97531126]
[1746556001774,102.86923392,144.85,144.8,26.97531126]
[1746556002169,20.06923392,144.84,144.8,44.24050463]
[1746556002877,20.06923392,144.84,144.8,24.17127071]
[1746556004877,82.8,144.85,144.81,20.06923392]
[1746556005181,102.86923392,144.85,144.81,20.06923392]
[1746556005480,20.06923392,144.85,144.81,20.06923392]
[1746556005778,20.06923392,144.86,144.82,20.06923392]
[1746556006162,20.06923392,144.85,144.81,20.06923392]
[1746556006996,20.06923392,144.85,144.82,6.9051236]
[1746556007570,20.06923392,144.86,144.82,6.9051236]
[1746556007773,20.06923392,144.85,144.82,6.9051236]
[1746556008482,84.453,144.9,144.84,20.06923392]
[1746556008667,20.06923392,144.89,144.85,33.64923392]
[1746556009082,20.06923392,144.89,144.86,6.90321689]
[1746556010060,20.06923392,144.89,144.86,24.16125913]
[1746556012261,20.06923392,144.89,144.86,6.90321689]
[1746556012489,20.06923392,144.88,144.86,6.90321689]
[1746556013598,20.06923392,144.89,144.86,6.90321689]
[1746556017596,20.06923392,144.88,144.86,6.90321689]
[1746556018270,20.06923392,144.89,144.86,6.90321689]
[1746556020792,20.06923392,144.88,144.86,6.90321689]
[1746556021000,20.06923392,144.89,144.86,6.90321689]
[1746556021570,20.06923392,144.87,144.82,6.9051236]
[1746556021776,20.06923392,144.87,144.83,33.64923392]
[1746556022300,20.06923392,144.88,144.84,26.97340403]
[1746556022798,20.06923392,144.88,144.84,44.23382932]
[1746556025404,20.06923392,144.89,144.85,20.06923392]
[1746556026613,20.06923392,144.88,144.84,44.23382932]
[1746556026912,20.06923392,144.85,144.82,6.9051236]
[1746556027124,20.06923392,144.83,144.81,6.90541545]
[1746556028314,20.06923392,144.83,144.8,6.90607734]
[1746556028713,20.06923392,144.83,144.8,26.97531126]
[1746556029905,20.06923392,144.83,144.8,6.90607734]
[1746556031126,20.06923392,144.83,144.8,6.55607734]
[1746556033127,20.06923392,144.81,144.79,6.90638556]
[1746556034122,20.06923392,144.81,144.78,6.90703135]
[1746556035119,20.06923392,144.82,144.78,26.97626527]
[1746556036328,20.06923392,144.82,144.78,6.90703135]
[1746556036820,20.06923392,144.81,144.78,6.90703135]
[1746556037822,20.06923392,144.81,144.77,6.90750846]
[1746556038922,20.06923392,144.81,144.77,26.97674238]
[1746556039124,82.8,144.84,144.77,24.17627961]
[1746556039428,102.86923392,144.83,144.78,20.06923392]
[1746556039727,20.06923392,144.82,144.78,20.06923392]
[1746556040325,102.86923392,144.83,144.79,20.06923392]
[1746556041031,20.06923392,144.82,144.78,20.06923392]
[1746556041205,19.56923392,144.82,144.78,20.06923392]
[1746556042643,19.56923392,144.82,144.79,6.90655432]
[1746556043012,20.06923392,144.81,144.79,6.90655432]
[1746556045131,20.06923392,144.81,144.78,6.90703135]